[Event "*** SCC Grand Prix: Titled Tuesday Blitz"]
[Site "Chess.com"]
[Date "2020.07.07"]
[Round "4"]
[White "Onischuk_V"]
[Black "GukeshDommaraju"]
[Result "1-0"]
[WhiteElo "2889"]
[BlackElo "2712"]
[TimeControl "180+1"]
[EndTime "10:40:08 PDT"]
[Termination "Onischuk_V won by resignation"]

1. e4 {[%clk 0:02:51.8]} 1... c5 {[%clk 0:02:59.9]} 2. Nf3 {[%clk 0:02:51.9]}
2... Nc6 {[%clk 0:02:59.4]} 3. Bb5 {[%clk 0:02:51.6]} 3... g6 {[%clk 0:02:59]}
4. Bxc6 {[%clk 0:02:51.6]} 4... dxc6 {[%clk 0:02:59.4]} 5. d3 {[%clk 0:02:50.3]}
5... Bg7 {[%clk 0:02:59.7]} 6. h3 {[%clk 0:02:48.4]} 6... Nf6 {[%clk 0:02:59.7]}
7. Nc3 {[%clk 0:02:44.9]} 7... Nd7 {[%clk 0:02:59.6]} 8. Be3 {[%clk 0:02:42.2]}
8... e5 {[%clk 0:02:59.4]} 9. Qd2 {[%clk 0:02:42.5]} 9... h6 {[%clk 0:02:58.5]}
10. O-O {[%clk 0:02:26.9]} 10... b6 {[%clk 0:02:58.1]} 11. Nh2 {[%clk
0:02:25.7]} 11... Nf8 {[%clk 0:02:57.6]} 12. f4 {[%clk 0:02:24.4]} 12... exf4
{[%clk 0:02:57.7]} 13. Rxf4 {[%clk 0:02:23.9]} 13... Be6 {[%clk 0:02:49.9]} 14.
Raf1 {[%clk 0:02:21.4]} 14... g5 {[%clk 0:02:39.2]} 15. R4f2 {[%clk 0:02:15.9]}
15... Qd6 {[%clk 0:02:38.4]} 16. Ng4 {[%clk 0:02:00.4]} 16... Nd7 {[%clk
0:02:32.9]} 17. Qe2 {[%clk 0:01:58.1]} 17... O-O-O {[%clk 0:02:27.2]} 18. Nb1
{[%clk 0:01:51.5]} 18... h5 {[%clk 0:02:12.3]} 19. Nh2 {[%clk 0:01:51.1]} 19...
g4 {[%clk 0:02:12.7]} 20. Bf4 {[%clk 0:01:51]} 20... Be5 {[%clk 0:02:10.3]} 21.
hxg4 {[%clk 0:01:44]} 21... hxg4 {[%clk 0:02:06.3]} 22. Nxg4 {[%clk 0:01:43.8]}
22... Bxf4 {[%clk 0:01:38.7]} 23. Rxf4 {[%clk 0:01:43.1]} 23... Qd4+ {[%clk
0:01:08.1]} 24. Ne3 {[%clk 0:01:42.3]} 24... Qxb2 {[%clk 0:01:07]} 25. a4 {[%clk
0:01:40]} 25... Rh7 {[%clk 0:01:01.5]} 26. Nd2 {[%clk 0:01:35.4]} 26... Rdh8
{[%clk 0:00:58]} 27. Kf2 {[%clk 0:01:29.1]} 27... Ne5 {[%clk 0:00:52.2]} 28. a5
{[%clk 0:01:10.8]} 28... Qd4 {[%clk 0:00:47.4]} 29. axb6 {[%clk 0:01:07]} 29...
axb6 {[%clk 0:00:46.8]} 30. Ke1 {[%clk 0:01:05.8]} 30... Kb7 {[%clk 0:00:45.3]}
31. Nf3 {[%clk 0:01:03.3]} 31... Nxf3+ {[%clk 0:00:38.5]} 32. R4xf3 {[%clk
0:00:59.1]} 32... Rh1 {[%clk 0:00:34.8]} 33. Qd2 {[%clk 0:00:53.2]} 33... Rxf1+
{[%clk 0:00:32.4]} 34. Rxf1 {[%clk 0:00:51.1]} 34... Ra8 {[%clk 0:00:31.9]} 35.
Ke2 {[%clk 0:00:49.2]} 35... Qg7 {[%clk 0:00:30.6]} 36. Qe1 {[%clk 0:00:46.3]}
36... Ra2 {[%clk 0:00:26.1]} 37. Qh4 {[%clk 0:00:43]} 37... Qc3 {[%clk 0:00:25]}
38. Qe7+ {[%clk 0:00:39]} 38... Ka6 {[%clk 0:00:25]} 39. Qe8 {[%clk 0:00:38]}
39... Kb7 {[%clk 0:00:19.9]} 40. Rxf7+ {[%clk 0:00:37.2]} 40... Ka6 {[%clk
0:00:16.9]} 41. Qxe6 {[%clk 0:00:36.5]} 41... Rxc2+ {[%clk 0:00:16.2]} 42. Nxc2
{[%clk 0:00:36]} 42... Qxc2+ {[%clk 0:00:16.7]} 43. Kf3 {[%clk 0:00:31.9]} 43...
Qc1 {[%clk 0:00:16.9]} 44. Qc4+ {[%clk 0:00:29.9]} 1-0

[Event "*** SCC Grand Prix: Titled Tuesday Blitz"]
[Site "Chess.com"]
[Date "2020.07.07"]
[Round "4"]
[White "Rodalquilar"]
[Black "jocmil"]
[Result "0-1"]
[WhiteElo "2615"]
[BlackElo "2481"]
[TimeControl "180+1"]
[EndTime "10:40:09 PDT"]
[Termination "jocmil won on time"]

1. d4 {[%clk 0:03:00.9]} 1... Nf6 {[%clk 0:02:59.2]} 2. Bf4 {[%clk 0:03:01]}
2... c5 {[%clk 0:02:58.4]} 3. e3 {[%clk 0:03:01]} 3... d5 {[%clk 0:02:57.5]} 4.
Nf3 {[%clk 0:03:00.3]} 4... Nc6 {[%clk 0:02:57.6]} 5. Nbd2 {[%clk 0:03:00.7]}
5... cxd4 {[%clk 0:02:55.2]} 6. exd4 {[%clk 0:03:01.6]} 6... Qb6 {[%clk
0:02:46.8]} 7. Nb3 {[%clk 0:02:58.8]} 7... Bf5 {[%clk 0:02:45]} 8. Bd3 {[%clk
0:02:08.9]} 8... Bxd3 {[%clk 0:02:44.6]} 9. Qxd3 {[%clk 0:02:09.8]} 9... e6
{[%clk 0:02:45]} 10. O-O {[%clk 0:02:03.2]} 10... Be7 {[%clk 0:02:42.6]} 11.
Rfe1 {[%clk 0:02:03.4]} 11... O-O {[%clk 0:02:41.3]} 12. c3 {[%clk 0:01:25]}
12... Ne4 {[%clk 0:02:30.3]} 13. Rab1 {[%clk 0:01:10.8]} 13... Rac8 {[%clk
0:02:21]} 14. Nbd2 {[%clk 0:01:10.9]} 14... Nxd2 {[%clk 0:02:20]} 15. Qxd2
{[%clk 0:01:09.6]} 15... Bf6 {[%clk 0:02:18.1]} 16. h4 {[%clk 0:01:01.6]} 16...
Qd8 {[%clk 0:02:04.7]} 17. Bg5 {[%clk 0:01:01.1]} 17... h6 {[%clk 0:02:01.2]}
18. Qf4 {[%clk 0:00:55]} 18... hxg5 {[%clk 0:01:46.2]} 19. hxg5 {[%clk
0:00:54.3]} 19... Be7 {[%clk 0:01:46.6]} 20. g3 {[%clk 0:00:52.1]} 20... g6
{[%clk 0:01:42.9]} 21. Qh4 {[%clk 0:00:52.2]} 21... Re8 {[%clk 0:01:39.1]} 22.
Kg2 {[%clk 0:00:36.8]} 22... Bf8 {[%clk 0:01:39.2]} 23. Nh2 {[%clk 0:00:37.1]}
23... Bg7 {[%clk 0:01:27.3]} 24. Ng4 {[%clk 0:00:37.4]} 24... Kf8 {[%clk
0:01:27.5]} 25. Nf6 {[%clk 0:00:35.6]} 25... Ke7 {[%clk 0:01:27]} 26. Nxe8
{[%clk 0:00:21.8]} 26... Qxe8 {[%clk 0:01:27.9]} 27. c4 {[%clk 0:00:22.2]} 27...
Qd7 {[%clk 0:01:13.1]} 28. Rbd1 {[%clk 0:00:22.3]} 28... Rh8 {[%clk 0:01:00]}
29. Qf4 {[%clk 0:00:21.3]} 29... Qd6 {[%clk 0:00:45.6]} 30. Qe3 {[%clk
0:00:11.8]} 30... Kd7 {[%clk 0:00:25.6]} 31. c5 {[%clk 0:00:11.7]} 31... Qe7
{[%clk 0:00:23.4]} 32. b4 {[%clk 0:00:12.1]} 32... Rh5 {[%clk 0:00:20.4]} 33. b5
{[%clk 0:00:11.2]} 33... Na5 {[%clk 0:00:14.4]} 34. f3 {[%clk 0:00:10.8]} 34...
Qxg5 {[%clk 0:00:13.5]} 35. Qa3 {[%clk 0:00:09.6]} 35... b6 {[%clk 0:00:13.1]}
36. cxb6 {[%clk 0:00:06.2]} 36... axb6 {[%clk 0:00:14]} 37. Rc1 {[%clk
0:00:06.5]} 37... Qd2+ {[%clk 0:00:12.8]} 0-1

[Event "*** SCC Grand Prix: Titled Tuesday Blitz"]
[Site "Chess.com"]
[Date "2020.07.07"]
[Round "4"]
[White "tan275"]
[Black "Lion-Al-Messi"]
[Result "0-1"]
[WhiteElo "2273"]
[BlackElo "2446"]
[TimeControl "180+1"]
[EndTime "10:40:12 PDT"]
[Termination "Lion-Al-Messi won on time"]

1. d4 {[%clk 0:02:59.3]} 1... d5 {[%clk 0:02:59.5]} 2. c4 {[%clk 0:02:59.7]}
2... c6 {[%clk 0:03:00.1]} 3. Nc3 {[%clk 0:02:59]} 3... Nf6 {[%clk 0:03:00.2]}
4. e3 {[%clk 0:02:58.8]} 4... e6 {[%clk 0:03:00]} 5. Nf3 {[%clk 0:02:58.2]} 5...
Nbd7 {[%clk 0:03:00.4]} 6. Qc2 {[%clk 0:02:57.8]} 6... Bd6 {[%clk 0:02:59.8]} 7.
Bd3 {[%clk 0:02:57.6]} 7... dxc4 {[%clk 0:02:58.7]} 8. Bxc4 {[%clk 0:02:56]}
8... b5 {[%clk 0:02:58.9]} 9. Be2 {[%clk 0:02:56.5]} 9... Bb7 {[%clk 0:02:59.1]}
10. O-O {[%clk 0:02:54.6]} 10... O-O {[%clk 0:02:59.2]} 11. Rd1 {[%clk
0:02:43.9]} 11... Qe7 {[%clk 0:02:58.5]} 12. h3 {[%clk 0:02:42]} 12... e5 {[%clk
0:02:58.4]} 13. dxe5 {[%clk 0:02:39.4]} 13... Nxe5 {[%clk 0:02:59.3]} 14. e4
{[%clk 0:02:31.2]} 14... Rad8 {[%clk 0:02:58]} 15. Bg5 {[%clk 0:02:26.9]} 15...
Nxf3+ {[%clk 0:02:58]} 16. Bxf3 {[%clk 0:02:26.2]} 16... Qe5 {[%clk 0:02:58.5]}
17. Bxf6 {[%clk 0:02:17.1]} 17... Qxf6 {[%clk 0:02:59.4]} 18. Rd3 {[%clk
0:01:47.4]} 18... Be5 {[%clk 0:02:44.8]} 19. Rad1 {[%clk 0:01:45.3]} 19... Rxd3
{[%clk 0:02:44.7]} 20. Qxd3 {[%clk 0:01:42.3]} 20... b4 {[%clk 0:02:39.4]} 21.
Na4 {[%clk 0:01:23.8]} 21... Bxb2 {[%clk 0:02:39]} 22. Nc5 {[%clk 0:01:14.1]}
22... Bc8 {[%clk 0:02:35.1]} 23. Qd6 {[%clk 0:01:10]} 23... h6 {[%clk
0:02:26.9]} 24. Qxf6 {[%clk 0:01:08.5]} 24... Bxf6 {[%clk 0:02:27.8]} 25. Rd6
{[%clk 0:01:07.8]} 25... a5 {[%clk 0:01:58.7]} 26. Rxc6 {[%clk 0:01:06.8]} 26...
Rd8 {[%clk 0:01:58.5]} 27. Be2 {[%clk 0:00:48.4]} 27... Kh7 {[%clk 0:01:38.3]}
28. Bd3 {[%clk 0:00:45.1]} 28... Be5 {[%clk 0:01:33.7]} 29. g4 {[%clk
0:00:36.9]} 29... g6 {[%clk 0:01:18]} 30. Bc4 {[%clk 0:00:34.3]} 30... Kg7
{[%clk 0:01:15.2]} 31. Nd3 {[%clk 0:00:31]} 31... Bd4 {[%clk 0:01:10.5]} 32. Rc7
{[%clk 0:00:27.8]} 32... Bd7 {[%clk 0:01:10.4]} 33. e5 {[%clk 0:00:23.9]} 33...
Kf8 {[%clk 0:01:06.6]} 34. Kg2 {[%clk 0:00:16.5]} 34... Bb6 {[%clk 0:00:59.6]}
35. Rxd7 {[%clk 0:00:06.3]} 35... Rxd7 {[%clk 0:01:00.5]} 36. f4 {[%clk
0:00:05.8]} 36... Rd4 {[%clk 0:00:58.3]} 37. Ba6 {[%clk 0:00:04.9]} 37... a4
{[%clk 0:00:58.4]} 38. Kf3 {[%clk 0:00:03.9]} 38... b3 {[%clk 0:00:57.6]} 39.
axb3 {[%clk 0:00:04]} 39... axb3 {[%clk 0:00:52.8]} 40. Nb2 {[%clk 0:00:03]}
40... Rd2 {[%clk 0:00:49.7]} 41. Nc4 {[%clk 0:00:03.3]} 41... Rf2+ {[%clk
0:00:49.8]} 42. Kg3 {[%clk 0:00:03.2]} 42... b2 {[%clk 0:00:49.5]} 43. Na3
{[%clk 0:00:03.1]} 43... Rc2 {[%clk 0:00:42.8]} 0-1

[Event "*** SCC Grand Prix: Titled Tuesday Blitz"]
[Site "Chess.com"]
[Date "2020.07.07"]
[Round "4"]
[White "Supernotar"]
[Black "Mikhal867"]
[Result "1-0"]
[WhiteElo "2803"]
[BlackElo "2359"]
[TimeControl "180+1"]
[EndTime "10:40:14 PDT"]
[Termination "Supernotar won by checkmate"]

1. d4 {[%clk 0:03:00.9]} 1... Nf6 {[%clk 0:02:59.1]} 2. c4 {[%clk 0:03:01.1]}
2... g6 {[%clk 0:02:59.2]} 3. Nc3 {[%clk 0:03:00.7]} 3... Bg7 {[%clk 0:02:59.7]}
4. e4 {[%clk 0:03:01.1]} 4... O-O {[%clk 0:02:59.2]} 5. Be2 {[%clk 0:03:01.3]}
5... d6 {[%clk 0:02:58.6]} 6. Nf3 {[%clk 0:03:01.3]} 6... e5 {[%clk 0:02:57.7]}
7. O-O {[%clk 0:03:00.7]} 7... Nc6 {[%clk 0:02:56.9]} 8. d5 {[%clk 0:03:00.4]}
8... Ne7 {[%clk 0:02:56.8]} 9. Ne1 {[%clk 0:03:00.5]} 9... Nd7 {[%clk
0:02:55.8]} 10. Be3 {[%clk 0:03:00.5]} 10... f5 {[%clk 0:02:55.3]} 11. f3 {[%clk
0:03:00.1]} 11... f4 {[%clk 0:02:55]} 12. Bf2 {[%clk 0:03:00.5]} 12... g5 {[%clk
0:02:55.2]} 13. a4 {[%clk 0:03:00.5]} 13... a5 {[%clk 0:02:53.9]} 14. Nd3 {[%clk
0:03:00]} 14... b6 {[%clk 0:02:53]} 15. b4 {[%clk 0:03:00.1]} 15... Ng6 {[%clk
0:02:46.1]} 16. Nb5 {[%clk 0:02:43.6]} 16... axb4 {[%clk 0:02:32.1]} 17. Nxb4
{[%clk 0:02:43.2]} 17... Nc5 {[%clk 0:02:31.7]} 18. Nc6 {[%clk 0:02:43]} 18...
Qd7 {[%clk 0:02:28.5]} 19. a5 {[%clk 0:02:38.8]} 19... bxa5 {[%clk 0:02:26.6]}
20. Rxa5 {[%clk 0:02:26.9]} 20... Bb7 {[%clk 0:02:17.8]} 21. Nba7 {[%clk
0:02:14.3]} 21... Ne7 {[%clk 0:02:05.6]} 22. Nxe7+ {[%clk 0:01:51.5]} 22... Qxe7
{[%clk 0:02:04.4]} 23. Bxc5 {[%clk 0:01:49.7]} 23... dxc5 {[%clk 0:02:03.9]} 24.
Qa4 {[%clk 0:01:46.3]} 24... Rf6 {[%clk 0:01:55.9]} 25. Rb1 {[%clk 0:01:33.7]}
25... Rb6 {[%clk 0:01:55.4]} 26. Rxb6 {[%clk 0:01:27]} 26... cxb6 {[%clk
0:01:54.7]} 27. Nc6 {[%clk 0:01:26.2]} 27... Qe8 {[%clk 0:01:20.3]} 28. Rxa8
{[%clk 0:01:05.1]} 28... Qxa8 {[%clk 0:01:17.7]} 29. Ne7+ {[%clk 0:01:00.7]}
29... Kf7 {[%clk 0:01:15.8]} 30. Qd7 {[%clk 0:00:56.8]} 30... Bf8 {[%clk
0:00:52.9]} 31. Nf5+ {[%clk 0:00:49.3]} 31... Kg8 {[%clk 0:00:27.8]} 32. Qe6+
{[%clk 0:00:49]} 32... Kh8 {[%clk 0:00:27.7]} 33. Qxe5+ {[%clk 0:00:43.9]} 33...
Kg8 {[%clk 0:00:27.6]} 34. Qe6+ {[%clk 0:00:42.9]} 34... Kh8 {[%clk 0:00:26.9]}
35. Qf6+ {[%clk 0:00:43.1]} 35... Kg8 {[%clk 0:00:27.1]} 36. Qxg5+ {[%clk
0:00:43]} 36... Kf7 {[%clk 0:00:26.7]} 37. Qxf4 {[%clk 0:00:36.7]} 37... Qa1+
{[%clk 0:00:25.7]} 38. Bf1 {[%clk 0:00:36.6]} 38... Ba6 {[%clk 0:00:23.2]} 39.
h4 {[%clk 0:00:29.7]} 39... Kg8 {[%clk 0:00:18.2]} 40. Qg5+ {[%clk 0:00:23.7]}
40... Kh8 {[%clk 0:00:17.7]} 41. Qd8 {[%clk 0:00:20]} 41... Kg8 {[%clk
0:00:15.3]} 42. Nh6+ {[%clk 0:00:15]} 42... Kg7 {[%clk 0:00:14.9]} 43. Qg5+
{[%clk 0:00:15]} 43... Kh8 {[%clk 0:00:10.1]} 44. Nf7# {[%clk 0:00:14.9]} 1-0

[Event "*** SCC Grand Prix: Titled Tuesday Blitz"]
[Site "Chess.com"]
[Date "2020.07.07"]
[Round "4"]
[White "Mr_Sinigami"]
[Black "harlem4brew"]
[Result "1-0"]
[WhiteElo "2566"]
[BlackElo "2122"]
[TimeControl "180+1"]
[EndTime "10:40:14 PDT"]
[Termination "Mr_Sinigami won by checkmate"]

1. d4 {[%clk 0:03:00.9]} 1... Nf6 {[%clk 0:02:59.6]} 2. Nf3 {[%clk 0:03:00.2]}
2... e6 {[%clk 0:02:59.3]} 3. Bf4 {[%clk 0:02:58.6]} 3... b6 {[%clk 0:02:58.9]}
4. e3 {[%clk 0:02:58.1]} 4... Bb7 {[%clk 0:02:58.5]} 5. Nbd2 {[%clk 0:02:57.2]}
5... Bb4 {[%clk 0:02:56.9]} 6. c3 {[%clk 0:02:56.2]} 6... Be7 {[%clk 0:02:55.2]}
7. h3 {[%clk 0:02:54.7]} 7... c5 {[%clk 0:02:52.6]} 8. Bd3 {[%clk 0:02:53.6]}
8... d5 {[%clk 0:02:52]} 9. O-O {[%clk 0:02:51.8]} 9... Nbd7 {[%clk 0:02:49.4]}
10. a4 {[%clk 0:02:49.9]} 10... Ne4 {[%clk 0:02:47.7]} 11. Bc2 {[%clk
0:02:47.5]} 11... Ndf6 {[%clk 0:02:46.7]} 12. a5 {[%clk 0:02:44.4]} 12... h6
{[%clk 0:02:43.3]} 13. Ba4+ {[%clk 0:02:42.3]} 13... Kf8 {[%clk 0:02:42]} 14.
Ne5 {[%clk 0:02:40.8]} 14... Ba6 {[%clk 0:02:32.8]} 15. Re1 {[%clk 0:02:38.7]}
15... b5 {[%clk 0:02:31.8]} 16. Bc2 {[%clk 0:02:35.7]} 16... Nxd2 {[%clk
0:02:29.9]} 17. Qxd2 {[%clk 0:02:34.7]} 17... Qc8 {[%clk 0:02:29.2]} 18. Nd3
{[%clk 0:02:08.3]} 18... c4 {[%clk 0:02:26]} 19. Nb4 {[%clk 0:02:06.9]} 19...
Bb7 {[%clk 0:02:22.1]} 20. a6 {[%clk 0:02:05.8]} 20... Bc6 {[%clk 0:02:20.4]}
21. Nxc6 {[%clk 0:02:05.2]} 21... Qxc6 {[%clk 0:02:19.5]} 22. f3 {[%clk
0:02:04.9]} 22... Nh5 {[%clk 0:02:09.3]} 23. Bh2 {[%clk 0:02:03.1]} 23... Bh4
{[%clk 0:02:05.5]} 24. Re2 {[%clk 0:01:59.6]} 24... Ng3 {[%clk 0:01:56.4]} 25.
Bxg3 {[%clk 0:01:58.9]} 25... Bxg3 {[%clk 0:01:55.1]} 26. e4 {[%clk 0:01:59.8]}
26... Qc7 {[%clk 0:01:46.1]} 27. Qe3 {[%clk 0:01:48.9]} 27... Bf4 {[%clk
0:01:45.2]} 28. Qf2 {[%clk 0:01:47.7]} 28... g6 {[%clk 0:01:42.1]} 29. e5 {[%clk
0:01:44.1]} 29... Bg5 {[%clk 0:01:40.5]} 30. f4 {[%clk 0:01:43.2]} 30... Be7
{[%clk 0:01:37.5]} 31. Rf1 {[%clk 0:01:41.2]} 31... Qd8 {[%clk 0:01:23.7]} 32.
f5 {[%clk 0:01:33.1]} 32... gxf5 {[%clk 0:01:08.9]} 33. Bxf5 {[%clk 0:01:34]}
33... Bh4 {[%clk 0:00:59.5]} 34. g3 {[%clk 0:01:29.7]} 34... Rg8 {[%clk
0:00:35.8]} 35. Bg4 {[%clk 0:01:26.9]} 35... Qe7 {[%clk 0:00:33.4]} 36. gxh4
{[%clk 0:01:20.3]} 36... h5 {[%clk 0:00:33.2]} 37. Qg3 {[%clk 0:01:19.8]} 37...
hxg4 {[%clk 0:00:33]} 38. hxg4 {[%clk 0:01:19]} 38... Ke8 {[%clk 0:00:32.5]} 39.
Ref2 {[%clk 0:01:18.4]} 39... Rg7 {[%clk 0:00:32.5]} 40. g5 {[%clk 0:01:17.2]}
40... Kd7 {[%clk 0:00:32.2]} 41. Rf6 {[%clk 0:01:16]} 41... Rag8 {[%clk
0:00:30.3]} 42. Kh2 {[%clk 0:01:14.8]} 42... Rh7 {[%clk 0:00:28.9]} 43. R1f4
{[%clk 0:01:14]} 43... Kc6 {[%clk 0:00:28.2]} 44. Qf2 {[%clk 0:01:13]} 44...
Rgg7 {[%clk 0:00:26.2]} 45. Qf3 {[%clk 0:01:09.1]} 45... Kb6 {[%clk 0:00:25.1]}
46. Qg4 {[%clk 0:01:08.3]} 46... Kxa6 {[%clk 0:00:24.7]} 47. g6 {[%clk
0:01:07.8]} 47... Rxg6 {[%clk 0:00:22]} 48. Rxg6 {[%clk 0:01:07.2]} 48... fxg6
{[%clk 0:00:22.1]} 49. Rf6 {[%clk 0:01:06.8]} 49... Ka5 {[%clk 0:00:22.1]} 50.
Kh3 {[%clk 0:01:02.3]} 50... Ka4 {[%clk 0:00:21.4]} 51. Rxe6 {[%clk 0:00:52.9]}
51... Qd7 {[%clk 0:00:20.4]} 52. Qd1+ {[%clk 0:00:46.5]} 52... Ka5 {[%clk
0:00:19.9]} 53. Qa1# {[%clk 0:00:47.4]} 1-0

[Event "*** SCC Grand Prix: Titled Tuesday Blitz"]
[Site "Chess.com"]
[Date "2020.07.07"]
[Round "4"]
[White "tigra"]
[Black "m_ezat"]
[Result "1-0"]
[WhiteElo "2789"]
[BlackElo "2534"]
[TimeControl "180+1"]
[EndTime "10:40:17 PDT"]
[Termination "tigra won on time"]

1. e4 {[%clk 0:03:00.9]} 1... c6 {[%clk 0:02:54.6]} 2. d4 {[%clk 0:03:00.4]}
2... d5 {[%clk 0:02:55]} 3. Nc3 {[%clk 0:03:01.3]} 3... dxe4 {[%clk 0:02:53.4]}
4. Nxe4 {[%clk 0:03:02.2]} 4... Nd7 {[%clk 0:02:50.4]} 5. Nf3 {[%clk 0:02:58.9]}
5... Ngf6 {[%clk 0:02:50.2]} 6. Neg5 {[%clk 0:02:54.6]} 6... h6 {[%clk
0:02:46.4]} 7. Ne6 {[%clk 0:02:54.7]} 7... fxe6 {[%clk 0:02:45.1]} 8. Bd3 {[%clk
0:02:54.7]} 8... Qa5+ {[%clk 0:02:18]} 9. Bd2 {[%clk 0:02:54.2]} 9... Qh5 {[%clk
0:02:17.8]} 10. Qe2 {[%clk 0:02:43.6]} 10... Nb6 {[%clk 0:01:44]} 11. O-O-O
{[%clk 0:02:41.6]} 11... Nbd5 {[%clk 0:01:41.1]} 12. c4 {[%clk 0:02:33.6]} 12...
Nb6 {[%clk 0:01:37.2]} 13. h3 {[%clk 0:02:28.5]} 13... Nfd7 {[%clk 0:01:20]} 14.
Rhe1 {[%clk 0:02:02.8]} 14... Kd8 {[%clk 0:01:05.6]} 15. Bf4 {[%clk 0:01:25.8]}
15... Qa5 {[%clk 0:00:39.8]} 16. Kb1 {[%clk 0:01:22.1]} 16... g5 {[%clk
0:00:36.9]} 17. Bd2 {[%clk 0:01:16]} 17... Qa4 {[%clk 0:00:31.5]} 18. Ne5 {[%clk
0:01:12.1]} 18... Nxe5 {[%clk 0:00:28.8]} 19. Qxe5 {[%clk 0:01:06.8]} 19... Rg8
{[%clk 0:00:26.2]} 20. Ba5 {[%clk 0:01:00]} 20... Bg7 {[%clk 0:00:22.8]} 21. Qc5
{[%clk 0:00:58]} 21... Bd7 {[%clk 0:00:20.5]} 22. Bc2 {[%clk 0:00:50.4]} 22...
Ke8 {[%clk 0:00:12.2]} 23. Bxa4 {[%clk 0:00:48.7]} 23... Nxa4 {[%clk 0:00:12.2]}
24. Qa3 {[%clk 0:00:48.9]} 24... b5 {[%clk 0:00:10.6]} 25. b3 {[%clk 0:00:40.8]}
25... Rb8 {[%clk 0:00:09.7]} 26. bxa4 {[%clk 0:00:40.1]} 26... bxc4+ {[%clk
0:00:10.4]} 27. Ka1 {[%clk 0:00:39.6]} 27... e5 {[%clk 0:00:10.7]} 28. dxe5
{[%clk 0:00:36.4]} 28... Be6 {[%clk 0:00:10.9]} 29. Bc3 {[%clk 0:00:36.1]} 29...
Kf7 {[%clk 0:00:10.8]} 30. Qc5 {[%clk 0:00:35.7]} 30... Rgd8 {[%clk 0:00:10.8]}
31. Rxd8 {[%clk 0:00:34.9]} 31... Rxd8 {[%clk 0:00:10.9]} 32. Kb2 {[%clk
0:00:32.9]} 32... Rd3 {[%clk 0:00:11.4]} 33. Qxc6 {[%clk 0:00:32.5]} 33... h5
{[%clk 0:00:10]} 34. a5 {[%clk 0:00:31.7]} 34... g4 {[%clk 0:00:09.7]} 35. hxg4
{[%clk 0:00:32.2]} 35... hxg4 {[%clk 0:00:09.6]} 36. a6 {[%clk 0:00:32.5]} 36...
g3 {[%clk 0:00:10.1]} 37. Re3 {[%clk 0:00:30.2]} 37... gxf2 {[%clk 0:00:08.9]}
38. Rxd3 {[%clk 0:00:29.7]} 38... cxd3 {[%clk 0:00:07.7]} 39. Qf3+ {[%clk
0:00:29.3]} 39... Kg6 {[%clk 0:00:07.9]} 40. Qxf2 {[%clk 0:00:29.6]} 40... Bf5
{[%clk 0:00:08]} 41. Qxa7 {[%clk 0:00:29.4]} 41... d2 {[%clk 0:00:05.1]} 42. Qd4
{[%clk 0:00:28.6]} 42... Bxe5 {[%clk 0:00:03.3]} 43. Qxd2 {[%clk 0:00:27.8]}
43... Bb8 {[%clk 0:00:01.1]} 44. Qd4 {[%clk 0:00:27]} 44... Ba7 {[%clk
0:00:01.8]} 45. Qxa7 {[%clk 0:00:26.8]} 1-0

[Event "*** SCC Grand Prix: Titled Tuesday Blitz"]
[Site "Chess.com"]
[Date "2020.07.07"]
[Round "4"]
[White "Efremov_Vlad"]
[Black "Susal_De_Silva"]
[Result "1-0"]
[WhiteElo "2218"]
[BlackElo "2351"]
[TimeControl "180+1"]
[EndTime "10:40:17 PDT"]
[Termination "Efremov_Vlad won by resignation"]

1. d4 {[%clk 0:03:00.9]} 1... Nf6 {[%clk 0:02:59.8]} 2. c4 {[%clk 0:03:01.4]}
2... e6 {[%clk 0:02:59.1]} 3. Nf3 {[%clk 0:03:00.9]} 3... b6 {[%clk 0:02:59.1]}
4. g3 {[%clk 0:03:00.9]} 4... Bb7 {[%clk 0:02:59.7]} 5. Bg2 {[%clk 0:03:01]}
5... g6 {[%clk 0:03:00.6]} 6. O-O {[%clk 0:02:59.4]} 6... Bg7 {[%clk 0:03:00.7]}
7. Nc3 {[%clk 0:02:59.6]} 7... Ne4 {[%clk 0:03:00.8]} 8. Bd2 {[%clk 0:02:43.7]}
8... O-O {[%clk 0:02:58.7]} 9. Rc1 {[%clk 0:02:42.5]} 9... d6 {[%clk 0:02:57]}
10. Be1 {[%clk 0:02:40.8]} 10... Nd7 {[%clk 0:02:54.9]} 11. Qc2 {[%clk
0:02:34.7]} 11... Nxc3 {[%clk 0:02:53.2]} 12. Bxc3 {[%clk 0:02:35.3]} 12... f5
{[%clk 0:02:53.3]} 13. d5 {[%clk 0:02:26.4]} 13... e5 {[%clk 0:02:45]} 14. h4
{[%clk 0:02:09.6]} 14... a5 {[%clk 0:02:38.6]} 15. Ng5 {[%clk 0:01:49.9]} 15...
Nc5 {[%clk 0:02:36.4]} 16. b3 {[%clk 0:01:36.7]} 16... h6 {[%clk 0:02:34.1]} 17.
Nf3 {[%clk 0:01:36.4]} 17... g5 {[%clk 0:02:32.9]} 18. hxg5 {[%clk 0:01:34.8]}
18... hxg5 {[%clk 0:02:33.8]} 19. a3 {[%clk 0:01:34.2]} 19... g4 {[%clk
0:02:20]} 20. Nh4 {[%clk 0:01:30.2]} 20... Qg5 {[%clk 0:02:04.2]} 21. b4 {[%clk
0:01:16.4]} 21... axb4 {[%clk 0:02:03.5]} 22. axb4 {[%clk 0:01:17.1]} 22... Na4
{[%clk 0:02:04.1]} 23. Bd2 {[%clk 0:01:05.6]} 23... Qh5 {[%clk 0:01:58.7]} 24.
Ra1 {[%clk 0:00:56]} 24... b5 {[%clk 0:01:32.7]} 25. cxb5 {[%clk 0:00:55.5]}
25... f4 {[%clk 0:01:18.7]} 26. Rxa4 {[%clk 0:00:46.8]} 26... Rxa4 {[%clk
0:01:19.6]} 27. Qxa4 {[%clk 0:00:46.4]} 27... f3 {[%clk 0:01:14.3]} 28. exf3
{[%clk 0:00:45.8]} 28... gxf3 {[%clk 0:01:15.2]} 29. Nxf3 {[%clk 0:00:27.9]}
29... Rxf3 {[%clk 0:01:14.1]} 30. Qa2 {[%clk 0:00:16.8]} 30... Rf6 {[%clk
0:01:08.8]} 31. Be3 {[%clk 0:00:16.5]} 31... Bh6 {[%clk 0:01:06.9]} 32. Bxh6
{[%clk 0:00:15.5]} 32... Rxh6 {[%clk 0:01:07.8]} 33. Rc1 {[%clk 0:00:15.2]}
33... Qf7 {[%clk 0:00:41.2]} 34. Rd1 {[%clk 0:00:09.9]} 34... Kg7 {[%clk
0:00:34.3]} 35. Qa7 {[%clk 0:00:09.8]} 35... Rf6 {[%clk 0:00:29.7]} 36. Qxb7
{[%clk 0:00:08.7]} 36... Rxf2 {[%clk 0:00:28.5]} 37. b6 {[%clk 0:00:09.1]} 37...
Rb2 {[%clk 0:00:26.1]} 38. Qxc7 {[%clk 0:00:08.9]} 38... Qxc7 {[%clk 0:00:23.6]}
39. bxc7 {[%clk 0:00:09.4]} 39... Rc2 {[%clk 0:00:24.5]} 40. b5 {[%clk
0:00:07.7]} 40... Rxc7 {[%clk 0:00:25]} 41. Rb1 {[%clk 0:00:08]} 41... Rb7
{[%clk 0:00:25.9]} 42. b6 {[%clk 0:00:08.5]} 42... Kf6 {[%clk 0:00:25.8]} 43.
Bf1 {[%clk 0:00:09.1]} 43... e4 {[%clk 0:00:23.3]} 44. Ba6 {[%clk 0:00:08.8]}
44... Rb8 {[%clk 0:00:24.2]} 45. b7 {[%clk 0:00:09.2]} 45... Ke5 {[%clk
0:00:25.1]} 46. Rc1 {[%clk 0:00:09.5]} 1-0